bitfinex-derivatives/quotes_BTCF0:USTF0_20250527
["timestamp","ask_amount","ask_price","bid_price","bid_amount"]
[1748361987422,0.00136112,110270.0,110240.0,1.7958511]
[1748361987612,0.00136112,110270.0,110260.0,0.84749221]
[1748361987921,0.00148112,110270.0,110260.0,1.28485239]
[1748361988229,0.00148112,110270.0,110260.0,1.50734439]
[1748361988420,0.00148112,110270.0,110260.0,1.49267177]
[1748361988619,0.00148112,110270.0,110260.0,1.40197977]
[1748361988817,0.00348112,110270.0,110260.0,1.40197977]
[1748361989024,0.18576672,110270.0,110260.0,1.76277977]
[1748361989225,0.18576672,110270.0,110260.0,1.06827715]
[1748361989417,0.31096672,110270.0,110260.0,1.06827715]
[1748361989726,0.31096672,110270.0,110260.0,1.05359732]
[1748361989727,0.73516672,110270.0,110260.0,1.05359732]
[1748361989925,0.73416672,110270.0,110260.0,1.05358128]
[1748361991326,0.73316672,110270.0,110260.0,1.05357627]
[1748361992424,0.30896672,110270.0,110260.0,1.14464868]
[1748361992629,0.73308672,110270.0,110260.0,1.00807436]
[1748361993218,0.73308672,110270.0,110260.0,0.64727436]
[1748361993624,0.73308672,110270.0,110260.0,0.43967436]
[1748361994129,0.73308672,110270.0,110260.0,0.25837236]
[1748361994319,1.09388672,110270.0,110260.0,0.46892678]
[1748361994820,1.09388672,110270.0,110260.0,0.17954102]
[1748361995025,1.09388672,110270.0,110260.0,0.36084302]
[1748361995829,1.09388672,110270.0,110260.0,0.42514302]
[1748361996022,1.09507547,110270.0,110260.0,0.17954102]
[1748361996428,1.09507547,110270.0,110260.0,0.36084302]
[1748361997322,1.09507547,110270.0,110260.0,0.17954102]
[1748361997922,1.42845809,110270.0,110260.0,0.10850332]
[1748361998227,0.181302,110260.0,110250.0,4e-08]
[1748361998523,0.181302,110260.0,110220.0,0.14138648]
[1748361998524,0.1813513,110230.0,110220.0,0.14138648]
[1748361998727,0.1813678,110220.0,110210.0,0.14960738]
[1748361998917,0.1813678,110220.0,110200.0,0.36941438]
[1748361998918,0.1813843,110210.0,110200.0,0.43645322]
[1748361999117,1.0997243,110210.0,110200.0,0.53791825]
[1748361999320,1.2009243,110210.0,110200.0,0.2530402]
[1748361999522,0.67693234,110210.0,110200.0,0.2530402]
[1748361999721,1.20225234,110210.0,110200.0,0.2530402]
[1748361999922,1.20237234,110210.0,110200.0,0.4344409]
[1748362000225,1.20237234,110210.0,110200.0,0.2590402]
[1748362000730,0.70463035,110210.0,110200.0,0.4404409]
[1748362000930,1.46201297,110210.0,110200.0,0.4404409]
[1748362001131,1.79201297,110210.0,110200.0,0.238]
[1748362001433,1.79201297,110210.0,110200.0,0.108]
[1748362001729,1.79201297,110210.0,110200.0,0.103]
[1748362005231,1.88275297,110210.0,110200.0,0.103]
[1748362005428,1.88295205,110210.0,110200.0,0.103]
[1748362006526,1.88315113,110210.0,110200.0,0.103]
[1748362007529,3.38335021,110210.0,110200.0,0.103]
[1748362007735,0.1814,110200.0,110190.0,9.082e-05]
[1748362007939,1.19938262,110200.0,110190.0,0.02009082]
[1748362008123,0.1814329,110180.0,110170.0,0.1306]
[1748362008328,1.0363929,110180.0,110170.0,0.2406]
[1748362008633,1.16813818,110180.0,110170.0,0.4883494]
[1748362009426,1.16813818,110180.0,110170.0,0.3069]
[1748362009629,1.16833726,110180.0,110170.0,0.4883494]
[1748362009831,0.38337726,110180.0,110170.0,0.4883494]
[1748362010034,0.18347726,110180.0,110170.0,0.8491494]
[1748362010221,0.60763726,110180.0,110170.0,0.86193885]
[1748362010634,0.18359726,110180.0,110170.0,0.86193885]
[1748362010835,0.00224398,110180.0,110170.0,1.09412147]
[1748362011043,0.00013626,110190.0,110180.0,0.181433]
[1748362011239,0.18155276,110190.0,110180.0,1.077933]
[1748362011738,0.18155276,110190.0,110180.0,1.369833]
[1748362012327,0.18155276,110190.0,110180.0,0.8276]
[1748362012636,0.60925276,110190.0,110180.0,0.59019354]
[1748362012834,0.67465276,110190.0,110180.0,0.54019354]
[1748362013230,0.67477276,110190.0,110180.0,0.54019354]
[1748362013439,0.67477276,110190.0,110180.0,0.47709354]
[1748362013739,0.70477276,110190.0,110180.0,0.41449354]
[1748362013930,1.23025276,110190.0,110180.0,0.41449354]
[1748362014132,1.23025276,110190.0,110180.0,0.54655452]
[1748362014325,1.23013276,110190.0,110180.0,0.54655575]
[1748362014537,0.70477276,110190.0,110180.0,0.72798765]
[1748362014828,0.70477276,110190.0,110180.0,0.72799409]
[1748362014829,1.12885276,110190.0,110180.0,0.72799409]
[1748362015438,1.12885276,110190.0,110180.0,0.72799199]
[1748362015633,1.12897276,110190.0,110180.0,0.54656009]
[1748362015838,1.46897276,110190.0,110180.0,0.54656075]
[1748362016048,1.20897276,110190.0,110180.0,0.72799345]
[1748362016240,1.20897276,110190.0,110180.0,0.7152327]
[1748362016434,1.20897276,110190.0,110180.0,0.53440193]
[1748362016745,1.39897276,110190.0,110180.0,0.55440193]
[1748362016939,1.39897276,110190.0,110180.0,0.3857472]
[1748362017637,1.39897276,110190.0,110180.0,0.16467797]
[1748362017941,1.63115538,110190.0,110180.0,0.16471623]
[1748362018247,1.63115538,110190.0,110180.0,0.09891623]
[1748362018447,1.63115538,110190.0,110180.0,0.09892332]
[1748362019941,1.63115538,110190.0,110180.0,0.05553211]
[1748362020136,1.63115538,110190.0,110180.0,0.01286511]
[1748362020331,0.1814324,110180.0,110170.0,0.14325288]
[1748362020549,1.27269502,110180.0,110170.0,0.18627382]
[1748362020841,1.27269502,110180.0,110170.0,0.18626528]
[1748362021140,0.5622324,110180.0,110170.0,0.35470178]
[1748362021342,0.9864724,110180.0,110170.0,0.35570178]
[1748362021537,0.9865924,110180.0,110170.0,0.35570178]
[1748362021741,0.9865924,110180.0,110170.0,0.35670178]
[1748362021940,0.2015524,110180.0,110170.0,0.35670178]
[1748362022141,0.6057924,110180.0,110170.0,0.35670178]
[1748362022339,0.6056724,110180.0,110170.0,0.35670178]
[1748362023231,0.6058324,110180.0,110170.0,0.42270178]
[1748362023437,0.6068324,110180.0,110170.0,0.42270178]
[1748362024149,0.1825524,110180.0,110170.0,0.44452129]
[1748362024448,0.1825524,110180.0,110170.0,0.26207239]
[1748362024643,1.04708262,110180.0,110170.0,0.26207239]
[1748362024847,1.11578262,110180.0,110170.0,0.42170158]
[1748362025146,0.68628262,110180.0,110170.0,0.42170158]
[1748362025648,0.26200262,110180.0,110170.0,0.42170158]
[1748362025847,0.68628262,110180.0,110170.0,0.42170158]
[1748362026142,0.68628262,110180.0,110170.0,0.44352109]
[1748362027044,0.26200262,110180.0,110170.0,0.42170158]
[1748362027545,0.74948262,110180.0,110170.0,0.44362755]
[1748362027747,1.08948262,110180.0,110170.0,0.44362765]
[1748362027950,1.53136524,110180.0,110170.0,0.11892597]
[1748362028150,1.74136524,110180.0,110170.0,0.08892597]
[1748362029648,0.1814488,110170.0,110160.0,0.40847619]
[1748362029845,1.33723142,110170.0,110160.0,0.08257619]
[1748362030052,1.33723142,110170.0,110160.0,0.09530192]
[1748362030643,1.3393288,110170.0,110160.0,0.27676722]
[1748362030846,1.34037902,110170.0,110160.0,0.39774149]
[1748362031042,0.81501902,110170.0,110160.0,0.39637983]
[1748362031244,0.83969902,110170.0,110160.0,0.37445386]
[1748362031444,1.20049902,110170.0,110160.0,0.39641816]
[1748362031643,0.67501902,110170.0,110160.0,0.22988763]
[1748362031844,1.22057902,110170.0,110160.0,0.0939643]
[1748362032249,1.22057902,110170.0,110160.0,0.10666955]
[1748362032749,1.68276164,110170.0,110160.0,0.10666955]
[1748362033553,1.68276164,110170.0,110160.0,0.10677037]
[1748362033961,1.68276164,110170.0,110160.0,0.08480917]
[1748362034648,1.68276164,110170.0,110160.0,0.01485884]
[1748362034850,3.2392849,110170.0,110160.0,0.01485884]
[1748362035052,0.1814653,110160.0,110150.0,0.0219612]
[1748362035253,1.33514792,110160.0,110150.0,0.0219612]
[1748362035454,0.1814818,110150.0,110140.0,0.08724187]
[1748362035647,1.5481218,110150.0,110140.0,0.12194187]
[1748362035849,1.54907202,110150.0,110140.0,0.12194187]
[1748362036058,1.34907202,110150.0,110140.0,0.12194187]
[1748362036254,1.34895202,110150.0,110140.0,0.12194187]
[1748362037055,1.34895202,110150.0,110140.0,0.12192603]
[1748362037241,1.34907202,110150.0,110140.0,0.12192603]
[1748362038070,0.00117022,110150.0,110140.0,1.08418092]
[1748362038357,0.00105022,110150.0,110140.0,1.98976892]
[1748362038558,0.00105022,110150.0,110140.0,1.56612127]
[1748362038559,0.01117022,110150.0,110140.0,1.56612127]
[1748362038855,0.19265202,110150.0,110140.0,1.4167983]
[1748362039046,0.25555202,110150.0,110140.0,1.47533327]
[1748362039250,0.67991192,110150.0,110140.0,1.47533327]
[1748362039455,0.67993447,110150.0,110140.0,1.4167983]
[1748362040350,0.67993447,110150.0,110140.0,1.2267983]
[1748362040553,0.74463447,110150.0,110140.0,0.8659983]
[1748362040746,1.84585709,110150.0,110140.0,0.004]
[1748362041252,1.61367447,110150.0,110140.0,0.02591905]
[1748362043459,1.61367447,110150.0,110140.0,0.004]
[1748362045456,1.64129468,110150.0,110140.0,0.004]
[1748362046261,1.64129468,110150.0,110140.0,0.00421929]
[1748362046651,1.11569468,110150.0,110140.0,0.00421929]
[1748362046953,1.64133468,110150.0,110140.0,0.01713609]
[1748362047351,1.64133468,110150.0,110140.0,0.01714325]
[1748362047554,1.64133468,110150.0,110140.0,0.01717438]
[1748362048550,1.8735173,110150.0,110140.0,0.01717438]
[1748362049259,0.93421298,110150.0,110120.0,0.0219141]
[1748362049466,0.5423139,110130.0,110120.0,0.3409141]
[1748362049758,1.0779539,110130.0,110120.0,0.1419141]
[1748362049966,1.2637539,110130.0,110120.0,0.1419141]
[1748362050354,1.2637539,110130.0,110120.0,0.1439141]
[1748362050552,1.26482667,110130.0,110120.0,0.14591414]
[1748362050746,1.62562667,110130.0,110120.0,0.14591414]
[1748362050952,1.79562667,110130.0,110120.0,0.124]
[1748362051358,1.79574667,110130.0,110120.0,0.124]
[1748362052259,1.79574667,110130.0,110120.0,0.123]
[1748362052457,1.27010667,110130.0,110120.0,0.123]
[1748362052663,1.01268667,110130.0,110120.0,0.39353624]
[1748362052960,0.73152667,110130.0,110120.0,0.45793624]
[1748362053155,0.73164667,110130.0,110120.0,0.45793624]
[1748362053673,1.32462929,110130.0,110120.0,0.14490584]
[1748362053966,1.63462929,110130.0,110120.0,0.003]
[1748362054164,1.40244667,110130.0,110120.0,0.003]
[1748362054472,1.63462929,110130.0,110120.0,0.003]
[1748362054763,1.40244667,110130.0,110120.0,0.003]
[1748362055167,1.40244667,110130.0,110120.0,0.1393]
[1748362055351,1.40244667,110130.0,110120.0,0.1383]
[1748362055560,1.40232667,110130.0,110120.0,0.1383]
[1748362055766,1.40244667,110130.0,110120.0,0.22310584]
[1748362056067,1.40244667,110130.0,110120.0,0.22311421]
[1748362056451,1.40244667,110130.0,110120.0,0.22111421]
[1748362056856,1.40244667,110130.0,110120.0,0.01]
[1748362057461,1.63462929,110130.0,110120.0,0.01]
[1748362058866,1.40244667,110130.0,110120.0,0.01]
[1748362059563,1.40244667,110130.0,110120.0,0.0756]
[1748362059767,1.40244667,110130.0,110120.0,0.1446]
[1748362060360,1.40232667,110130.0,110120.0,0.1446]
[1748362060667,1.40244667,110130.0,110120.0,0.1446]
[1748362060977,1.22244667,110130.0,110120.0,0.1446]
[1748362061176,1.22244667,110130.0,110120.0,0.15769323]
[1748362061364,0.06237277,110130.0,110120.0,0.72193784]
[1748362061565,0.00119277,110130.0,110120.0,1.54684473]
[1748362061763,0.00107277,110130.0,110120.0,1.78181702]
[1748362061967,0.00136267,110140.0,110130.0,0.1815139]
[1748362062276,0.00136267,110140.0,110130.0,1.51897466]
[1748362062469,0.00136267,110140.0,110130.0,1.60977066]
[1748362062678,0.00136267,110140.0,110130.0,1.85837083]
[1748362062679,0.00148267,110140.0,110130.0,1.85837083]
[1748362062879,0.00136267,110140.0,110130.0,1.85837083]
[1748362063069,0.00236267,110140.0,110130.0,1.85837083]
[1748362063266,0.00448267,110140.0,110130.0,1.85837083]
[1748362063776,0.00248267,110140.0,110130.0,1.85837083]
[1748362064168,0.00248267,110140.0,110130.0,1.81239955]
[1748362064367,0.00248267,110140.0,110130.0,1.85836432]
[1748362064677,0.00148267,110140.0,110130.0,1.85836432]
[1748362064975,0.00148267,110140.0,110130.0,2.63766432]
[1748362065379,0.00148267,110140.0,110130.0,2.57919729]
[1748362065580,0.18161706,110150.0,110140.0,0.1814973]
[1748362065780,0.00013626,110150.0,110140.0,2.71736672]
[1748362065964,0.00013626,110150.0,110140.0,3.05815472]
[1748362066170,0.00025626,110150.0,110140.0,3.14341358]
[1748362066468,0.00025626,110150.0,110140.0,3.16432011]
[1748362066469,0.00013626,110150.0,110140.0,3.16432011]
[1748362067075,0.00013626,110150.0,110140.0,2.38502011]
[1748362067076,0.00025626,110150.0,110140.0,2.38502011]
[1748362067471,0.00025626,110150.0,110140.0,2.38602011]
[1748362067672,0.00025626,110150.0,110140.0,2.20452281]
[1748362067877,0.00025626,110150.0,110140.0,2.38602011]
[1748362068386,0.00025626,110150.0,110140.0,2.13592876]
[1748362068767,0.00025626,110150.0,110140.0,2.38592876]
[1748362069071,0.00136236,110160.0,110150.0,0.1814808]
[1748362069274,0.00136236,110160.0,110150.0,1.61792441]
[1748362069473,0.18282666,110160.0,110150.0,1.70870441]
[1748362069767,0.18282666,110160.0,110150.0,1.7086809]
[1748362069966,0.18282666,110160.0,110150.0,2.1362009]
[1748362071179,0.18282666,110160.0,110150.0,2.1361923]
[1748362071375,0.18282666,110160.0,110150.0,2.12156822]
[1748362071881,0.18282666,110160.0,110150.0,1.3600656]
[1748362072076,0.18282666,110160.0,110150.0,1.4618656]
[1748362072278,0.25182666,110160.0,110150.0,1.4618656]
[1748362072475,0.25182666,110160.0,110150.0,1.48540025]
[1748362072685,0.25182666,110160.0,110150.0,1.39462025]
[1748362073589,0.25182666,110160.0,110150.0,1.42377447]
[1748362073974,0.25182666,110160.0,110150.0,1.39462025]
[1748362074683,0.25182666,110160.0,110150.0,1.4237691]
[1748362074985,0.25182666,110160.0,110150.0,1.39462025]
[1748362075575,0.25182666,110160.0,110150.0,1.42376466]
[1748362076878,0.25182666,110160.0,110150.0,1.42373084]
[1748362077078,0.25182666,110160.0,110150.0,1.37792541]
[1748362077479,0.25182666,110160.0,110150.0,1.61010803]
[1748362077873,0.25182666,110160.0,110150.0,1.37792541]
[1748362079686,0.25182666,110160.0,110150.0,1.66982541]
[1748362080376,0.25182666,110160.0,110150.0,0.66844441]
[1748362080582,0.31922666,110160.0,110150.0,0.67454441]
[1748362080788,0.31922666,110160.0,110150.0,0.85602531]
[1748362080995,0.31922666,110160.0,110150.0,1.23867843]
[1748362081178,0.31922666,110160.0,110150.0,1.30637843]
[1748362081481,0.31934666,110160.0,110150.0,1.30637867]
[1748362081675,0.31934666,110160.0,110150.0,1.28452531]
[1748362081878,0.31934666,110160.0,110150.0,1.37410241]
[1748362081879,0.31922666,110160.0,110150.0,1.37410241]
[1748362082081,0.31934666,110160.0,110150.0,1.3282888]
[1748362083186,0.31934666,110160.0,110150.0,1.00124441]
[1748362083378,0.31934666,110160.0,110150.0,0.82192531]
[1748362083574,0.31934666,110160.0,110150.0,1.18272531]
[1748362083777,0.31934666,110160.0,110150.0,1.00519044]
[1748362083983,0.31934666,110160.0,110150.0,1.02206404]
[1748362084283,0.32934666,110160.0,110150.0,0.97604603]
[1748362084688,0.32934666,110160.0,110150.0,1.14466603]
[1748362084890,0.31922666,110160.0,110150.0,1.27051044]
[1748362085082,0.31934666,110160.0,110150.0,1.27051044]
[1748362085684,0.31934666,110160.0,110150.0,0.30352954]
[1748362085983,0.31934666,110160.0,110140.0,0.36630609]
[1748362085984,0.72580395,110160.0,110140.0,0.36630609]
[1748362086186,1.39380249,110150.0,110140.0,0.07000003]
[1748362086387,1.71380249,110150.0,110140.0,3e-08]
[1748362086891,1.51032661,110150.0,110140.0,3e-08]
[1748362087389,1.4866809,110150.0,110140.0,0.01000003]
[1748362087788,0.1814974,110140.0,110130.0,0.72701595]
[1748362087986,0.3166974,110140.0,110130.0,0.88314202]
[1748362088180,0.3166974,110140.0,110130.0,0.20469702]
[1748362088383,0.3166974,110140.0,110130.0,0.74701092]
[1748362088794,0.3266974,110140.0,110130.0,0.15857095]
[1748362089294,0.3286974,110140.0,110130.0,0.15184093]
[1748362089691,0.3296974,110140.0,110130.0,0.13917878]
[1748362090290,0.3296974,110140.0,110130.0,0.32069268]
[1748362090690,0.3296974,110140.0,110130.0,0.13917878]
[1748362092298,0.6904974,110140.0,110130.0,0.32069268]
[1748362092493,0.3196974,110140.0,110130.0,0.32069268]
[1748362093090,0.3198174,110140.0,110130.0,0.32069268]
[1748362093297,0.3198174,110140.0,110130.0,0.13917878]
[1748362093592,0.6906174,110140.0,110130.0,0.13917878]
[1748362093784,0.6906174,110140.0,110130.0,0.1519158]
[1748362094699,0.6906174,110140.0,110130.0,0.12273702]
[1748362094898,0.6906174,110140.0,110130.0,0.12275621]
[1748362095195,0.6906174,110140.0,110130.0,0.12275974]
[1748362095494,0.92353596,110140.0,110130.0,0.12275974]
[1748362095894,0.6906174,110140.0,110130.0,0.12278573]
[1748362096286,0.6906174,110140.0,110130.0,0.12279054]
[1748362096495,0.6906174,110140.0,110130.0,0.12278949]
[1748362097999,0.6906174,110140.0,110130.0,0.12278686]
[1748362098299,0.9706174,110140.0,110130.0,0.12278686]
[1748362098688,0.9706174,110140.0,110130.0,0.11]
[1748362098891,0.9706174,110140.0,110130.0,0.12278548]
[1748362099199,1.20353596,110140.0,110130.0,0.12278548]
[1748362100000,1.0614134,110140.0,110130.0,0.12278548]
[1748362100298,1.0614134,110140.0,110130.0,0.12297224]
[1748362100299,1.29433196,110140.0,110130.0,0.12297224]
[1748362100496,1.20353596,110140.0,110130.0,0.12297224]
[1748362100684,0.9706174,110140.0,110130.0,0.12297224]
[1748362100887,0.9704974,110140.0,110130.0,0.30448614]
[1748362101089,1.1791774,110140.0,110130.0,0.31448614]
[1748362101290,0.7504974,110140.0,110130.0,0.31427826]
[1748362101491,1.1792174,110140.0,110130.0,0.31427826]
[1748362101686,0.7504974,110140.0,110130.0,0.31427826]
[1748362101891,0.8183774,110140.0,110130.0,0.31427826]
[1748362102100,0.8182574,110140.0,110130.0,0.31427826]
[1748362102300,0.8183774,110140.0,110130.0,0.31427826]
[1748362102695,0.8183774,110140.0,110130.0,0.13276436]
[1748362102894,0.7483774,110140.0,110130.0,0.13276436]
[1748362103499,0.7483774,110140.0,110130.0,0.12276436]
[1748362103801,0.7683774,110140.0,110130.0,0.12276436]
[1748362104207,1.1291774,110140.0,110130.0,0.12276436]
[1748362104407,1.36209596,110140.0,110130.0,0.12276436]
[1748362105203,1.36209596,110140.0,110130.0,0.01656436]
[1748362105204,1.54209596,110140.0,110130.0,0.01656436]
[1748362105505,1.54209596,110140.0,110130.0,0.01298429]
[1748362106308,0.1815135,110130.0,110120.0,0.16057029]
[1748362106507,1.0145735,110130.0,110120.0,0.03435006]
[1748362107313,1.0145735,110130.0,110120.0,0.03301377]
[1748362107603,1.02804346,110130.0,110120.0,0.03301377]
[1748362107811,1.11884746,110130.0,110120.0,0.03301377]
[1748362108006,1.35176602,110130.0,110120.0,0.03301377]
[1748362108418,1.41656602,110130.0,110120.0,0.03301377]
[1748362108616,1.41856602,110130.0,110120.0,0.03301377]
[1748362108813,1.41856602,110130.0,110120.0,0.03307712]
[1748362109207,1.41956602,110130.0,110120.0,0.03307712]
[1748362109818,1.18664746,110130.0,110120.0,0.03307712]
[1748362110013,1.41390688,110130.0,110120.0,0.03307712]
[1748362110214,1.18664746,110130.0,110120.0,0.03307712]
[1748362110407,1.41390688,110130.0,110120.0,0.03307712]
[1748362110609,1.41390688,110130.0,110120.0,0.03307993]
[1748362111211,1.52392346,110130.0,110120.0,0.02]
[1748362111410,1.09584346,110130.0,110120.0,0.1016199]
[1748362111615,1.5106135,110130.0,110120.0,0.1016199]
[1748362112214,1.1499335,110130.0,110120.0,0.10157508]
[1748362112413,0.7216935,110130.0,110120.0,0.2701303]
[1748362112615,0.6191335,110130.0,110120.0,0.16696587]
[1748362112904,1.0472935,110130.0,110120.0,0.16696587]
[1748362113320,1.4080935,110130.0,110120.0,0.10156587]
[1748362113525,1.63535292,110130.0,110120.0,0.03296587]
[1748362113821,1.63535292,110130.0,110120.0,0.03306211]
[1748362114620,1.4080935,110130.0,110120.0,0.03306211]
[1748362114831,1.4079735,110130.0,110120.0,0.10356211]
[1748362115025,1.0472935,110130.0,110120.0,0.10356211]
[1748362115340,0.1384,110130.0,110120.0,0.87315183]
[1748362115520,0.1846338,110130.0,110120.0,0.95895183]
[1748362115718,0.1846338,110130.0,110120.0,1.00278818]
[1748362115919,0.1845138,110130.0,110120.0,1.00278818]
[1748362116132,0.1846338,110130.0,110120.0,1.00278818]
[1748362116322,0.1845138,110130.0,110120.0,0.98972607]
[1748362116523,0.1846338,110130.0,110120.0,1.00243464]
[1748362116730,0.1846338,110130.0,110120.0,0.7751745]
[1748362116936,0.1846338,110130.0,110120.0,1.00243392]
[1748362118028,0.1846338,110130.0,110120.0,0.7751745]
[1748362118227,0.1846338,110130.0,110120.0,0.77517624]
[1748362119435,0.3171338,110130.0,110120.0,0.77517624]
[1748362119636,0.3171338,110130.0,110120.0,0.77520914]
[1748362119927,0.3171338,110130.0,110120.0,0.23287884]
[1748362120129,0.7659738,110130.0,110120.0,0.14707884]
[1748362120327,0.7659738,110130.0,110120.0,0.17631859]
[1748362120328,1.1908738,110130.0,110120.0,0.17631859]
[1748362120627,1.1908738,110130.0,110120.0,0.17885541]
[1748362121033,1.76379246,110130.0,110120.0,0.06992464]
[1748362121334,1.76379246,110130.0,110120.0,0.05]
[1748362121837,1.5308738,110130.0,110120.0,0.05]
[1748362122930,1.5307538,110130.0,110120.0,0.1186]
[1748362123129,0.1815295,110120.0,110110.0,0.04116812]
[1748362123435,0.6944295,110120.0,110110.0,0.17116812]
[1748362123633,0.6944295,110120.0,110110.0,0.18116812]
[1748362124131,0.6944295,110120.0,110110.0,0.14]
[1748362124433,0.6944295,110120.0,110110.0,0.13]
[1748362125728,0.6944295,110120.0,110100.0,0.1]
[1748362125729,0.181546,110110.0,110100.0,0.1]
[1748362125926,0.181546,110110.0,110100.0,0.11]
[1748362125927,1.82036466,110110.0,110100.0,0.11]
[1748362126131,0.181579,110090.0,110080.0,0.0013627]
[1748362126438,0.181579,110090.0,110080.0,0.4414582]
[1748362126439,0.621219,110090.0,110080.0,0.4414582]
[1748362126626,0.67701006,110100.0,110090.0,0.181579]
[1748362126627,0.13631586,110100.0,110090.0,0.181579]
[1748362126829,0.00013626,110100.0,110090.0,1.42261766]
[1748362127139,0.18169876,110100.0,110090.0,1.61822713]
[1748362127328,0.18169876,110100.0,110090.0,1.29447647]
[1748362127637,0.25911876,110100.0,110090.0,1.24808657]
[1748362127937,0.24911876,110100.0,110090.0,1.25108657]
[1748362128125,0.24911876,110100.0,110090.0,1.29746588]
[1748362128637,0.24911876,110100.0,110090.0,1.25108657]
[1748362129026,0.31581876,110100.0,110090.0,1.25108657]
[1748362129534,0.31581876,110100.0,110090.0,1.25408657]
[1748362130728,0.31581876,110100.0,110090.0,1.41329467]
[1748362131135,0.31581876,110100.0,110090.0,1.30997467]
[1748362132129,0.31581876,110100.0,110090.0,0.58396759]
[1748362132332,0.31581876,110100.0,110090.0,0.52558002]
[1748362132934,0.31581876,110100.0,110090.0,1.08094478]
[1748362133245,0.31581876,110100.0,110090.0,0.53856548]
[1748362133427,0.52581876,110100.0,110090.0,0.72015545]
[1748362133632,0.52581876,110100.0,110090.0,0.72015886]
[1748362133835,0.31581876,110100.0,110090.0,0.72015886]
[1748362134342,0.31581876,110100.0,110090.0,0.53857956]
[1748362134532,0.31581876,110100.0,110090.0,0.62973661]
[1748362134836,0.31581876,110100.0,110090.0,0.81131591]
[1748362135032,0.31581876,110100.0,110090.0,0.81132481]
[1748362135236,0.31581876,110100.0,110090.0,0.81130164]
[1748362135532,0.31581876,110100.0,110090.0,0.70715932]
[1748362135939,0.31581876,110100.0,110090.0,0.49220646]
[1748362136138,0.31581876,110100.0,110090.0,0.54490434]
[1748362136336,0.31581876,110100.0,110090.0,0.39668757]
[1748362136531,0.87661876,110100.0,110090.0,0.2852081]
[1748362136726,0.87661876,110100.0,110090.0,0.29833837]
[1748362136929,0.87661876,110100.0,110090.0,0.29832664]
[1748362137135,0.51581876,110100.0,110090.0,0.29832664]
[1748362137643,0.51581876,110100.0,110090.0,0.2983128]
[1748362137838,0.51581876,110100.0,110090.0,0.47986158]
[1748362138040,0.51581876,110100.0,110090.0,0.4667874]
[1748362138344,0.94789876,110100.0,110090.0,0.126]
[1748362138543,1.30869876,110100.0,110090.0,0.126]
[1748362138738,1.30869876,110100.0,110090.0,0.1391312]
[1748362139638,1.54161742,110100.0,110090.0,0.1138218]
[1748362139939,0.1815793,110090.0,110080.0,0.0013627]
[1748362140147,1.39776232,110090.0,110080.0,0.01479833]
[1748362140439,1.1703393,110090.0,110080.0,0.01479833]
[1748362140631,1.1703393,110090.0,110080.0,0.02343563]
[1748362140632,0.8095393,110090.0,110080.0,0.02343563]
[1748362141035,0.8096593,110090.0,110080.0,0.03243563]
[1748362141335,0.7062993,110090.0,110080.0,0.03232422]
[1748362141536,0.5162993,110090.0,110080.0,0.085]
[1748362141736,0.9480593,110090.0,110080.0,0.0982856]
[1748362141943,0.9480593,110090.0,110080.0,0.2798814]
[1748362141944,0.5161793,110090.0,110080.0,0.2798814]
[1748362142246,0.8179793,110090.0,110080.0,0.7074814]
[1748362142550,0.8179793,110090.0,110080.0,0.82012232]
[1748362142845,0.8179793,110090.0,110080.0,0.77354016]
[1748362143038,0.8179793,110090.0,110080.0,0.78749232]
[1748362143240,0.8179793,110090.0,110080.0,0.47289652]
[1748362143443,0.8379793,110090.0,110080.0,0.29369232]
[1748362143645,0.8379793,110090.0,110080.0,0.11209652]
[1748362143840,0.8379793,110090.0,110080.0,0.29369232]
[1748362144242,1.1987793,110090.0,110080.0,0.03214436]
[1748362144645,1.1987793,110090.0,110080.0,0.03211458]
[1748362144943,1.1987793,110090.0,110080.0,0.019]
[1748362145132,1.1987793,110090.0,110080.0,0.03212363]
[1748362146347,1.1987793,110090.0,110080.0,0.05248891]
[1748362147348,1.4087793,110090.0,110080.0,0.05254846]
[1748362147545,1.1787793,110090.0,110080.0,0.06610825]
[1748362147741,1.1787793,110090.0,110080.0,0.06611136]
[1748362147941,1.1787793,110090.0,110080.0,0.08800948]
[1748362149046,1.1787793,110090.0,110080.0,0.15430948]
[1748362149656,1.1787793,110090.0,110080.0,0.14074969]
[1748362149949,0.7470993,110090.0,110080.0,0.3092386]
[1748362150144,0.7470993,110090.0,110080.0,0.90317517]
[1748362150145,0.3862993,110090.0,110080.0,0.90317517]
[1748362150352,0.8169793,110090.0,110080.0,1.07129992]
[1748362150549,0.8170993,110090.0,110080.0,1.11792648]
[1748362150847,0.7483993,110090.0,110080.0,0.83816335]
[1748362151036,0.7485193,110090.0,110080.0,0.83816335]
[1748362151241,0.7485193,110090.0,110080.0,0.83806661]
[1748362151242,0.3177993,110090.0,110080.0,0.83806661]
[1748362151443,0.18171166,110100.0,110090.0,0.1815793]
[1748362151750,0.18171166,110100.0,110090.0,1.40168809]
[1748362151953,0.00013626,110100.0,110090.0,1.68026026]
[1748362152156,0.00025626,110100.0,110090.0,1.77109226]
[1748362152354,0.18169906,110100.0,110090.0,1.8241743]
[1748362152546,0.18181906,110100.0,110090.0,1.73301725]
[1748362152748,0.1815338,110120.0,110090.0,2.08784987]
[1748362152944,0.00136328,110130.0,110120.0,0.1815299]
[1748362153147,0.2282278,110150.0,110140.0,0.1814969]
[1748362153348,0.1828572,110150.0,110140.0,1.25104609]
[1748362153641,0.0014829,110150.0,110140.0,1.42137032]
[1748362153842,0.0013629,110150.0,110140.0,1.79683456]
[1748362154051,0.1829633,110150.0,110140.0,1.85681394]
[1748362154375,0.0063629,110150.0,110140.0,2.02781394]
[1748362154549,0.00612,110150.0,110140.0,2.02781394]
[1748362154749,0.00112,110150.0,110140.0,2.02681394]
[1748362154954,0.00212,110150.0,110140.0,2.04736944]
[1748362155149,0.00212,110150.0,110140.0,2.47884944]
[1748362155350,0.1836004,110150.0,110140.0,1.95577014]
[1748362155548,0.1836004,110150.0,110140.0,1.90919411]
[1748362155743,0.1836004,110150.0,110140.0,1.94084254]
[1748362155947,0.1836004,110150.0,110140.0,1.70770597]
[1748362156246,0.1836004,110150.0,110140.0,2.00484254]
[1748362156558,0.00212,110150.0,110140.0,2.00484254]
[1748362156852,0.1836005,110150.0,110140.0,2.00484254]
[1748362157247,0.1836005,110150.0,110140.0,1.95843303]
[1748362157756,0.1836005,110150.0,110140.0,1.98750551]
[1748362157952,0.3193005,110150.0,110140.0,1.98750551]
[1748362158258,0.3193005,110150.0,110140.0,1.98746551]
[1748362158755,0.00212,110150.0,110140.0,1.98746551]
[1748362158958,0.00212,110150.0,110140.0,2.27936551]
[1748362159359,0.002,110150.0,110140.0,2.27936551]
[1748362159655,0.00212,110150.0,110140.0,2.27931211]
[1748362160155,0.00212,110150.0,110140.0,2.73763963]
[1748362160348,0.1834804,110150.0,110140.0,2.76666822]
[1748362160553,0.1836004,110150.0,110140.0,2.73763963]
[1748362160755,0.1836004,110150.0,110140.0,2.25023963]
[1748362160953,0.3121004,110150.0,110140.0,2.04612649]
[1748362161271,0.3121004,110150.0,110140.0,2.27926306]